fUSD/lending_fUSD_20250115
["ID","MTS","AMOUNT","RATE_DAILY","PERIOD"]
[348964037,1736899843305,-500.0,0.00011545,2]
[348964038,1736899843315,-1847.19,0.00011545,2]
[348964039,1736899843326,-616.46,0.00011545,2]
[348964040,1736899843335,-3801.72,0.00011545,2]
[348964041,1736899843345,-685.37,0.00011545,2]
[348964042,1736899843354,-500.0,0.00011545,2]
[348964043,1736899843363,-500.0,0.00011545,2]
[348964044,1736899843372,-1013.48,0.00011545,2]
[348964045,1736899843381,-500.0,0.00011545,2]
[348964046,1736899843390,-723.06,0.00011546,2]
[348964047,1736899843400,-500.0,0.00011547,2]
[348964048,1736899843411,-500.0,0.00011547,2]
[348964049,1736899843420,-1891.3,0.00011547,2]
[348964050,1736899843429,-838.6,0.00011547,2]
[348964051,1736899843438,-500.0,0.00011547,2]
[348964052,1736899843448,-500.0,0.00011547,2]
[348964053,1736899843457,-558.21,0.00011547,2]
[348964054,1736899843467,-825.99,0.00011547,2]
[348964055,1736899843476,-241.33910108,0.00011547,2]
[348964056,1736899843485,-1215.24,0.00011547,2]
[348964057,1736899843495,-500.0,0.00011547,2]
[348964058,1736899843505,-654.94,0.00011547,2]
[348964059,1736899843514,-500.0,0.00011547,2]
[348964060,1736899843525,-528.65154566,0.00011547,2]
[348964061,1736899843535,-151.0,0.00011547,2]
[348964062,1736899843545,-1164.83,0.00011547,2]
[348964063,1736899843555,-500.0,0.00011547,2]
[348964064,1736899843564,-680.12,0.00011547,2]
[348964065,1736899843574,-500.0,0.00011547,2]
[348964066,1736899843585,-500.0,0.00011547,2]
[348964067,1736899843594,-1654.54,0.00011547,2]
[348964068,1736899843603,-1948.5,0.00011547,2]
[348964069,1736899843613,-500.0,0.00011547,2]
[348964070,1736899843623,-500.0,0.00011547,2]
[348964071,1736899843632,-500.0,0.00011547,2]
[348964072,1736899843642,-500.0,0.00011547,2]
[348964073,1736899843651,-1033.8,0.00011547,2]
[348964074,1736899843663,-1892.69,0.00011547,2]
[348964075,1736899843672,-500.0,0.00011547,2]
[348964076,1736899843682,-719.41,0.00011547,2]
[348964077,1736899843690,-571.42,0.00011547,2]
[348964078,1736899843700,-717.08,0.00011547,2]
[348964079,1736899843710,-573.32,0.00011547,2]
[348964080,1736899843720,-671.88,0.00011547,2]
[348964081,1736899843731,-907.56,0.00011547,2]
[348964082,1736899843740,-1316.77,0.00011547,2]
[348964083,1736899843749,-1083.42,0.00011547,2]
[348964084,1736899843759,-500.0,0.00011547,2]
[348964085,1736899843768,-500.0,0.00011547,2]
[348964086,1736899843777,-161.83858765,0.00011642,2]
[348964087,1736899843786,-302.22,0.00011644,2]
[348964088,1736899843795,-13459.9148,0.00011647,2]
[348964089,1736899843804,-1300.0,0.0001178,2]
[348964090,1736899843813,-3400.0,0.0001178,2]
[348964091,1736899843822,-500.0,0.0001178,2]
[348964092,1736899843833,-500.0,0.00011803,2]
[348964093,1736899843842,-500.0,0.00011803,2]
[348964094,1736899843852,-500.0,0.00011803,2]
[348964095,1736899843861,-627.16,0.00011803,2]
[348964096,1736899843870,-500.0,0.00011803,2]
[348964097,1736899843880,-500.0,0.00011803,2]
[348964098,1736899843888,-710.86,0.00011803,2]
[348964099,1736899843898,-1096.43,0.00011803,2]
[348964100,1736899843907,-1200.4,0.00011803,2]
[348964101,1736899843916,-1160.69,0.00011803,2]
[348964102,1736899843926,-789.57,0.00011803,2]
[348964103,1736899843935,-720.14,0.00011803,2]
[348964104,1736899843944,-518.27,0.00011803,2]
[348964105,1736899843955,-1474.41,0.00011803,2]
[348964106,1736899843965,-556.34,0.00011803,2]
[348964107,1736899843977,-553.96,0.00011803,2]
[348964108,1736899843986,-580.927481,0.00011803,2]
[348964109,1736899843996,-500.0,0.00011803,2]
[348964110,1736899844005,-750.05,0.00011803,2]
[348964112,1736899844014,-2081.45,0.00011803,2]
[348964113,1736899844023,-530.993958,0.00011803,2]
[348964114,1736899844033,-500.0,0.00011803,2]
[348964115,1736899844044,-500.0,0.00011803,2]
[348964116,1736899844055,-1393.34,0.00011803,2]
[348964117,1736899844065,-500.0,0.00011803,2]
[348964118,1736899844079,-583.39,0.00011803,2]
[348964119,1736899844088,-500.0,0.00011803,2]
[348964120,1736899844097,-500.0,0.00011804,2]
[348964121,1736899844106,-500.0,0.00011804,2]
[348964122,1736899844117,-500.0,0.00011804,2]
[348964123,1736899844128,-500.0,0.00011804,2]
[348964124,1736899844137,-500.0,0.00011804,2]
[348964125,1736899844146,-500.0,0.00011804,2]
[348964126,1736899844156,-500.0,0.00011804,2]
[348964127,1736899844167,-500.0,0.00011804,2]
[348964128,1736899844176,-500.0,0.00011804,2]
[348964129,1736899844186,-500.0,0.00011804,2]
[348964130,1736899844196,-500.0,0.00011804,2]
[348964131,1736899844205,-500.0,0.00011804,2]
[348964132,1736899844214,-500.0,0.00011804,2]
[348964133,1736899844224,-500.0,0.00011804,2]
[348964134,1736899844233,-500.0,0.00011804,2]
[348964135,1736899844242,-500.0,0.00011804,2]
[348964136,1736899844251,-500.0,0.00011804,2]
[348964137,1736899844260,-500.0,0.00011804,2]
[348964138,1736899844269,-500.0,0.00011804,2]
[348964139,1736899844278,-500.0,0.00011804,2]
[348964140,1736899844288,-500.0,0.00011804,2]
[348964141,1736899844297,-500.0,0.00011804,2]
[348964142,1736899844306,-500.0,0.00011804,2]
[348964143,1736899844315,-500.0,0.00011804,2]
[348964144,1736899844324,-500.0,0.00011804,2]
[348964145,1736899844336,-500.0,0.00011804,2]
[348964146,1736899844345,-500.0,0.00011804,2]
[348964147,1736899844354,-500.0,0.00011804,2]
[348964148,1736899844364,-500.0,0.00011804,2]
[348964149,1736899844373,-500.0,0.00011804,2]
[348964150,1736899844382,-3035.64,0.00011804,2]
[348964151,1736899844391,-500.0,0.00011804,2]
[348964152,1736899844400,-549.97,0.00011804,2]
[348964153,1736899844409,-500.0,0.00011804,2]
[348964154,1736899844419,-500.0,0.00011804,2]
[348964155,1736899844428,-500.0,0.00011804,2]
[348964156,1736899844437,-551.69,0.00011804,2]
[348964157,1736899844448,-500.0,0.00011804,2]
[348964158,1736899844457,-500.0,0.00011804,2]
[348964159,1736899844466,-500.0,0.00011804,2]
[348964160,1736899844476,-892.65,0.00011804,2]
[348964161,1736899844488,-2116.18,0.00011804,2]
[348964162,1736899844498,-500.0,0.00011804,2]
[348964163,1736899844508,-500.0,0.00011804,2]
[348964164,1736899844517,-1946.54,0.00011804,2]
[348964165,1736899844526,-500.0,0.00011804,2]
[348964166,1736899844536,-578.42,0.00011804,2]
[348964167,1736899844545,-608.19435997,0.00011804,2]
[348964168,1736899844555,-500.0,0.00011804,2]
[348964169,1736899844565,-1519.02,0.00011804,2]
[348964170,1736899844575,-945.24,0.00011804,2]
[348964171,1736899844586,-500.0,0.00011804,2]
[348964172,1736899844595,-1740.78,0.00011804,2]
[348964173,1736899844605,-500.0,0.00011804,2]
[348964174,1736899844614,-709.4,0.00011804,2]
[348964175,1736899844624,-500.0,0.00011804,2]
[348964176,1736899844634,-500.0,0.00011804,2]
[348964177,1736899844644,-500.0,0.00011804,2]
[348964178,1736899844655,-576.19,0.00011804,2]
[348964179,1736899844665,-500.0,0.00011804,2]
[348964180,1736899844674,-500.0,0.00011804,2]
[348964181,1736899844683,-500.0,0.00011804,2]
[348964182,1736899844692,-523.05,0.00011804,2]
[348964183,1736899844702,-500.0,0.00011804,2]
[348964184,1736899844712,-151.0,0.00011805,2]
[348964185,1736899844721,-648.54,0.00011806,2]
[348964186,1736899844730,-3467.7,0.00011806,2]
[348964187,1736899844739,-947.24,0.00011806,2]
[348964188,1736899844749,-1436.89,0.00011806,2]
[348964189,1736899844758,-855.8,0.00011806,2]
[348964190,1736899844767,-776.37,0.00011806,2]
[348964191,1736899844777,-1931.96,0.00011806,2]
[348964192,1736899844786,-153.507976,0.00011807,4]
[348964193,1736899844935,-879.92,0.00011819,2]
[348964194,1736899844951,-500.0,0.00011819,2]
[348964195,1736899844960,-500.0,0.00011819,2]
[348964196,1736899844974,-539.68,0.00011819,2]
[348964197,1736899844986,-500.0,0.00011819,2]
[348964198,1736899844995,-926.87,0.00011819,2]
[348964199,1736899845005,-804.93,0.00011819,2]
[348964200,1736899845014,-500.0,0.00011819,2]
[348964201,1736899845024,-1847.19,0.00011819,2]
[348964202,1736899845034,-616.46,0.00011819,2]
[348964203,1736899845044,-3801.72,0.00011819,2]
[348964204,1736899845054,-685.37,0.00011819,2]
[348964205,1736899845064,-500.0,0.00011819,2]
[348964206,1736899845073,-500.0,0.00011819,2]
[348964207,1736899845085,-1013.48,0.00011819,2]
[348964208,1736899845094,-500.0,0.00011819,2]
[348964209,1736899845103,-380.74060403,0.0001182,2]
[348964210,1736899845113,-279.46278826,0.0001182,2]
[348964211,1736899845122,-286.317087,0.0001182,2]
[348964212,1736899845131,-723.06,0.0001182,2]
[348964213,1736899845142,-500.0,0.0001182,2]
[348964214,1736899845151,-22551.796649,0.00011821,4]
[348964215,1736899845364,-74259.3599999,0.00011821,4]
[348964216,1736899845383,-752.655,0.00011821,4]
[348964217,1736899845395,-28208.9073469,0.00011821,4]
[348964218,1736899845406,-1920.55029064,0.00011821,4]
[348964219,1736899845421,-3779.0,0.00011821,4]
[348964220,1736899845432,-2060.0,0.00011821,4]
[348964221,1736899845445,-9780.7,0.00011821,4]
[348964222,1736899845458,-447243.41093472,0.00011821,4]
[348964223,1736899845468,-500.0,0.00011821,2]
[348964224,1736899845478,-500.0,0.00011821,2]
[348964225,1736899845489,-1891.3,0.00011821,2]
[348964226,1736899845499,-838.6,0.00011821,2]
[348964227,1736899845509,-500.0,0.00011821,2]
[348964228,1736899845520,-500.0,0.00011821,2]
[348964229,1736899845530,-558.21,0.00011821,2]
[348964230,1736899845540,-825.99,0.00011821,2]
[348964231,1736899845549,-1215.24,0.00011821,2]
[348964232,1736899845559,-389.46628878,0.00011821,2]
[348964233,1736899845568,-654.94,0.00011821,2]
[348964234,1736899845579,-580.59874522,0.00011821,2]
[348964235,1736899845590,-1164.83,0.00011821,2]
[348964236,1736899845600,-500.0,0.00011821,2]
[348964237,1736899845609,-680.12,0.00011821,2]
[348964238,1736899845618,-500.0,0.00011821,2]
[348964239,1736899845628,-500.0,0.00011821,2]
[348964240,1736899845637,-1654.54,0.00011821,2]
[348964241,1736899845647,-1948.5,0.00011821,2]
[348964242,1736899845658,-500.0,0.00011821,2]
[348964243,1736899845668,-500.0,0.00011821,2]
[348964244,1736899845677,-500.0,0.00011821,2]
[348964245,1736899845687,-500.0,0.00011821,2]
[348964246,1736899845698,-1033.8,0.00011821,2]
[348964247,1736899845708,-1892.69,0.00011821,2]
[348964248,1736899845718,-500.0,0.00011821,2]
[348964249,1736899845727,-719.41,0.00011821,2]
[348964250,1736899845737,-571.42,0.00011821,2]
[348964251,1736899845748,-717.08,0.00011821,2]
[348964252,1736899845758,-573.32,0.00011821,2]
[348964253,1736899845767,-671.88,0.00011821,2]
[348964254,1736899845777,-907.56,0.00011821,2]
[348964255,1736899845786,-1316.77,0.00011821,2]
[348964256,1736899845795,-1083.42,0.00011821,2]
[348964257,1736899845804,-500.0,0.00011821,2]
[348964258,1736899845814,-161.83858765,0.00011828,2]
[348964259,1736899845825,-8392.0,0.000119,2]
[348964260,1736899845837,-1000.0,0.000119,2]
[348964261,1736899845847,-231.0,0.000119,2]
[348964262,1736899845856,-975.6,0.000119,2]
[348964263,1736899845866,-365.0,0.000119,2]
[348964264,1736899845877,-1397.04121587,0.000119,2]
[348964265,1736899845886,-4673.629,0.00011915,2]
[348964266,1736899845896,-167.695,0.00011915,2]
[348964267,1736899845905,-824.2281285,0.00011993,2]
[348964268,1736899845915,-166.73794239,0.00011994,2]
[348964269,1736899845924,-150.0,0.00012,2]
[348964270,1736899845933,-150.0,0.00012005,2]
[348964271,1736899845942,-150.0,0.00012006,2]
[348964272,1736899845951,-150.0,0.00012009,2]
[348964273,1736899845961,-150.0,0.00012011,2]
[348964274,1736899845974,-150.0,0.00012013,2]
[348964275,1736899845985,-161.83858765,0.00012014,2]
[348964276,1736899845994,-150.0,0.00012015,2]
[348964277,1736899846003,-150.0,0.00012023,2]
[348964278,1736899846012,-150.0,0.00012024,2]
[348964279,1736899846022,-150.0,0.00012025,2]
[348964280,1736899846032,-1500.0,0.00012025,2]
[348964281,1736899846041,-150.0,0.00012026,2]
[348964282,1736899846051,-150.0,0.00012027,2]
[348964283,1736899846061,-150.0,0.00012027,2]
[348964284,1736899846071,-150.0,0.00012028,2]
[348964285,1736899846082,-1327.87074426,0.00012031,2]
[348964286,1736899846093,-150.0,0.00012033,2]
[348964287,1736899846103,-150.0,0.00012033,2]
[348964289,1736899846114,-150.0,0.00012035,2]
[348964290,1736899846125,-150.0,0.00012037,2]
[348964291,1736899846137,-1500.0,0.00012038,2]
[348964292,1736899846147,-150.0,0.0001204,2]
[348964293,1736899846157,-150.0,0.00012041,2]
[348964294,1736899846168,-150.0,0.00012042,2]
[348964295,1736899846179,-150.0,0.00012043,2]
[348964296,1736899846189,-150.0,0.00012047,2]
[348964297,1736899846198,-150.0,0.00012047,2]
[348964298,1736899846209,-150.0,0.00012048,2]
[348964299,1736899846219,-150.0,0.00012049,2]
[348964300,1736899846229,-572.812129,0.00012053,2]
[348964301,1736899846238,-150.0,0.00012053,2]
[348964302,1736899846248,-200.0,0.00012055,2]
[348964303,1736899846257,-1500.0,0.00012057,2]
[348964304,1736899846268,-150.0,0.00012058,2]
[348964305,1736899846277,-150.0,0.00012058,2]
[348964306,1736899846286,-150.0,0.00012058,2]
[348964307,1736899846295,-1500.0,0.0001206,2]
[348964308,1736899846305,-150.0,0.00012061,2]
[348964309,1736899846314,-1500.0,0.00012061,2]
[348964310,1736899846323,-150.0,0.00012064,2]
[348964311,1736899846334,-150.0,0.00012064,2]
[348964312,1736899846344,-150.37541711,0.00012065,2]
[348964313,1736899846354,-150.0,0.00012066,2]
[348964314,1736899846363,-150.0,0.0001207,2]
[348964315,1736899846372,-150.0,0.0001207,2]
[348964316,1736899846382,-1500.0,0.00012071,2]
[348964317,1736899846391,-150.0,0.00012071,2]
[348964318,1736899846400,-150.0,0.00012074,2]
[348964319,1736899846410,-150.0,0.00012074,2]
[348964320,1736899846420,-500.0,0.00012077,2]
[348964321,1736899846430,-500.0,0.00012077,2]
[348964322,1736899846440,-500.0,0.00012077,2]
[348964323,1736899846450,-627.16,0.00012077,2]
[348964324,1736899846459,-500.0,0.00012077,2]
[348964325,1736899846468,-500.0,0.00012077,2]
[348964326,1736899846479,-710.86,0.00012077,2]
[348964327,1736899846488,-1096.43,0.00012077,2]
[348964328,1736899846497,-1200.4,0.00012077,2]
[348964329,1736899846507,-1160.69,0.00012077,2]
[348964330,1736899846516,-789.57,0.00012077,2]
[348964331,1736899846525,-720.14,0.00012077,2]
[348964332,1736899846534,-518.27,0.00012077,2]
[348964333,1736899846544,-1474.41,0.00012077,2]
[348964334,1736899846554,-556.34,0.00012077,2]
[348964335,1736899846563,-553.96,0.00012077,2]
[348964336,1736899846572,-580.927481,0.00012077,2]
[348964337,1736899846583,-500.0,0.00012077,2]
[348964338,1736899846592,-750.05,0.00012077,2]
[348964339,1736899846602,-2081.45,0.00012077,2]
[348964340,1736899846611,-530.993958,0.00012077,2]
[348964341,1736899846620,-500.0,0.00012077,2]
[348964342,1736899846630,-500.0,0.00012077,2]
[348964343,1736899846639,-1393.34,0.00012077,2]
[348964344,1736899846649,-491.73926596,0.00012077,2]
[348964345,1736899846666,-8.26073404,0.00012077,2]
[348964346,1736899846676,-583.39,0.00012077,2]
[348964348,1736899846686,-500.0,0.00012077,2]
[348964349,1736899846695,-500.0,0.00012078,2]
[348964351,1736899846704,-356.36,0.00012078,2]
[348964353,1736899846713,-500.0,0.00012078,2]
[348964355,1736899846722,-500.0,0.00012078,2]
[348964357,1736899846732,-500.0,0.00012078,2]
[348964359,1736899846741,-500.0,0.00012078,2]
[348964361,1736899846750,-500.0,0.00012078,2]
[348964363,1736899846760,-500.0,0.00012078,2]
[348964365,1736899846770,-500.0,0.00012078,2]
[348964367,1736899846779,-500.0,0.00012078,2]
[348964369,1736899846789,-500.0,0.00012078,2]
[348964371,1736899846798,-500.0,0.00012078,2]
[348964373,1736899846807,-500.0,0.00012078,2]
[348964375,1736899846817,-150.0,0.00012078,2]
[348964377,1736899846826,-500.0,0.00012078,2]
[348964379,1736899846836,-500.0,0.00012078,2]
[348964381,1736899846846,-500.0,0.00012078,2]
[348964383,1736899846856,-500.0,0.00012078,2]
[348964385,1736899846866,-500.0,0.00012078,2]
[348964387,1736899846876,-500.0,0.00012078,2]
[348964389,1736899846886,-500.0,0.00012078,2]
[348964391,1736899846895,-500.0,0.00012078,2]
[348964393,1736899846905,-500.0,0.00012078,2]
[348964395,1736899846913,-500.0,0.00012078,2]
[348964397,1736899846923,-295.88311706,0.00012078,2]
[348964399,1736899846934,-204.11688294,0.00012078,2]
[348964401,1736899846943,-500.0,0.00012078,2]
[348964403,1736899846952,-3035.64,0.00012078,2]
[348964405,1736899846961,-500.0,0.00012078,2]
[348964407,1736899846974,-500.0,0.00012078,2]
[348964409,1736899846984,-500.0,0.00012078,2]
[348964411,1736899846993,-551.69,0.00012078,2]
[348964412,1736899847002,-500.0,0.00012078,2]
[348964413,1736899847013,-500.0,0.00012078,2]
[348964414,1736899847022,-500.0,0.00012078,2]
[348964415,1736899847031,-892.65,0.00012078,2]
[348964416,1736899847040,-2116.18,0.00012078,2]
[348964417,1736899847054,-500.0,0.00012078,2]
[348964418,1736899847064,-500.0,0.00012078,2]
[348964419,1736899847074,-1946.54,0.00012078,2]
[348964420,1736899847084,-500.0,0.00012078,2]
[348964421,1736899847094,-578.42,0.00012078,2]
[348964422,1736899847104,-500.0,0.00012078,2]
[348964423,1736899847112,-1519.02,0.00012078,2]
[348964424,1736899847122,-945.24,0.00012078,2]
[348964425,1736899847131,-500.0,0.00012078,2]
[348964426,1736899847140,-1740.78,0.00012078,2]
[348964427,1736899847150,-500.0,0.00012078,2]
[348964428,1736899847159,-709.4,0.00012078,2]
[348964429,1736899847169,-500.0,0.00012078,2]
[348964430,1736899847178,-500.0,0.00012078,2]
[348964431,1736899847187,-500.0,0.00012078,2]
[348964432,1736899847197,-576.19,0.00012078,2]
[348964433,1736899847209,-500.0,0.00012078,2]
[348964434,1736899847220,-500.0,0.00012078,2]
[348964435,1736899847230,-500.0,0.00012078,2]
[348964436,1736899847240,-523.05,0.00012078,2]
[348964437,1736899847251,-500.0,0.00012078,2]
[348964438,1736899847260,-1500.0,0.00012079,2]
[348964439,1736899847270,-648.54,0.0001208,2]
[348964440,1736899847279,-3467.7,0.0001208,2]
[348964441,1736899847289,-150.0,0.0001208,2]
[348964442,1736899847298,-947.24,0.0001208,2]
[348964443,1736899847351,-1436.89,0.0001208,2]
[348964444,1736899847360,-855.8,0.0001208,2]
[348964445,1736899847370,-776.37,0.0001208,2]
[348964446,1736899847380,-1931.96,0.0001208,2]
[348964447,1736899847389,-150.0,0.00012081,2]
[348964448,1736899847397,-150.0,0.00012085,2]
[348964449,1736899847407,-150.0,0.00012085,2]
[348964450,1736899847416,-1500.0,0.00012086,2]
[348964451,1736899847426,-150.0,0.00012088,2]
[348964452,1736899847435,-150.0,0.00012089,2]
[348964453,1736899847445,-162.05,0.00012091,2]
[348964454,1736899847454,-1500.0,0.00012093,2]
[348964455,1736899847464,-150.0,0.00012093,2]
[348964456,1736899847473,-879.92,0.00012093,2]
[348964457,1736899847483,-500.0,0.00012093,2]
[348964458,1736899847492,-500.0,0.00012093,2]
[348964459,1736899847502,-539.68,0.00012093,2]
[348964460,1736899847512,-500.0,0.00012093,2]
[348964461,1736899847522,-926.87,0.00012093,2]
[348964462,1736899847532,-804.93,0.00012093,2]
[348964463,1736899847541,-500.0,0.00012093,2]
[348964464,1736899847550,-1847.19,0.00012093,2]
[348964465,1736899847560,-616.46,0.00012093,2]
[348964466,1736899847569,-3801.72,0.00012093,2]
[348964467,1736899847578,-685.37,0.00012093,2]
[348964468,1736899847588,-500.0,0.00012093,2]
[348964469,1736899847597,-500.0,0.00012093,2]
[348964470,1736899847608,-1013.48,0.00012093,2]
[348964471,1736899847618,-723.06,0.00012094,2]
[348964472,1736899847627,-150.0,0.00012094,2]
[348964473,1736899847636,-500.0,0.00012095,2]
[348964474,1736899847645,-500.0,0.00012095,2]
[348964475,1736899847655,-1891.3,0.00012095,2]
[348964476,1736899847665,-838.6,0.00012095,2]
[348964477,1736899847674,-500.0,0.00012095,2]
[348964478,1736899847684,-500.0,0.00012095,2]
[348964479,1736899847693,-558.21,0.00012095,2]
[348964480,1736899847702,-825.99,0.00012095,2]
[348964481,1736899847710,-1215.24,0.00012095,2]
[348964482,1736899847719,-654.94,0.00012095,2]
[348964483,1736899847728,-1164.83,0.00012095,2]
[348964484,1736899847738,-500.0,0.00012095,2]
[348964485,1736899847747,-680.12,0.00012095,2]
[348964486,1736899847757,-500.0,0.00012095,2]
[348964487,1736899847767,-500.0,0.00012095,2]
[348964488,1736899847777,-1654.54,0.00012095,2]
[348964489,1736899847786,-1948.5,0.00012095,2]
[348964490,1736899847795,-500.0,0.00012095,2]
[348964491,1736899847804,-500.0,0.00012095,2]
[348964492,1736899847813,-500.0,0.00012095,2]
[348964493,1736899847823,-500.0,0.00012095,2]
[348964494,1736899847834,-1033.8,0.00012095,2]
[348964495,1736899847843,-1892.69,0.00012095,2]
[348964496,1736899847851,-150.0,0.00012095,2]
[348964497,1736899847861,-500.0,0.00012095,2]
[348964498,1736899847870,-719.41,0.00012095,2]
[348964499,1736899847879,-571.42,0.00012095,2]
[348964500,1736899847888,-717.08,0.00012095,2]
[348964501,1736899847897,-573.32,0.00012095,2]
[348964502,1736899847907,-671.88,0.00012095,2]
[348964503,1736899847915,-907.56,0.00012095,2]
[348964504,1736899847925,-1316.77,0.00012095,2]
[348964505,1736899847935,-1083.42,0.00012095,2]
[348964506,1736899847945,-500.0,0.00012095,2]
[348964507,1736899847954,-150.0,0.00012096,2]
[348964508,1736899847964,-1500.0,0.00012098,2]
[348964509,1736899847976,-150.0,0.00012101,2]
[348964510,1736899847986,-150.0,0.00012103,2]
[348964511,1736899847995,-150.0,0.0001211,2]
[348964512,1736899848005,-150.0,0.00012111,2]
[348964513,1736899848014,-150.0,0.00012112,2]
[348964514,1736899848023,-150.0,0.00012113,2]
[348964515,1736899848033,-150.0,0.00012114,2]
[348964516,1736899848043,-150.0,0.00012115,2]
[348964517,1736899848053,-150.0,0.00012117,2]
[348964518,1736899848063,-150.0,0.00012117,2]
[348964519,1736899848073,-150.0,0.00012118,2]
[348964520,1736899848085,-150.0,0.00012119,2]
[348964521,1736899848094,-1500.0,0.0001212,2]
[348964522,1736899848104,-150.0,0.00012125,2]
[348964523,1736899848113,-150.0,0.00012126,2]
[348964524,1736899848123,-150.0,0.00012128,2]
[348964525,1736899848133,-150.0,0.00012128,2]
[348964526,1736899848143,-150.0,0.0001213,2]
[348964527,1736899848152,-427.19361758,0.00012133,2]
[348964528,1736899848351,-408.63201329,0.00011083,2]
[348964529,1736899848362,-500.0,0.00011821,2]
[348964530,1736899848371,-199.427986,0.00012093,2]
[348964531,1736899848383,-300.572014,0.00012093,2]
[348964532,1736899848392,-500.0,0.00012095,2]
[348964533,1736899848402,-1072.80638242,0.00012133,2]
[348964534,1736899848412,-150.0,0.00012136,2]
[348964535,1736899848422,-150.0,0.00012136,2]
[348964536,1736899848432,-1500.0,0.0001214,2]
[348964537,1736899848441,-1132.17160358,0.00012141,2]
[348964538,1736899848461,-279.46278826,0.00012141,2]
[348964539,1736899848493,-88.36560816,0.00012141,2]
[348964540,1736899848503,-150.0,0.00012142,2]
[348964541,1736899848512,-150.0,0.00012146,2]
[348964542,1736899848521,-1264.39166356,0.00012146,2]
[348964543,1736899848533,-235.60833644,0.00012146,2]
[348964544,1736899848542,-150.0,0.00012148,2]
[348964545,1736899848552,-150.0,0.00012148,2]
[348964546,1736899848561,-1055.82026281,0.00012149,2]
[348964547,1736899848571,-1500.0,0.00012149,2]
[348964548,1736899848581,-150.0,0.0001215,2]
[348964549,1736899848591,-150.0,0.0001215,2]
[348964550,1736899848602,-1500.0,0.00012153,2]
[348964551,1736899848612,-150.0,0.00012153,2]
[348964552,1736899848621,-1500.0,0.00012158,2]
[348964553,1736899848631,-32.46973329,0.00012158,2]
[348964554,1736899848642,-117.53026671,0.00012158,2]
[348964555,1736899848652,-1500.0,0.00012162,2]
[348964556,1736899848661,-150.0,0.00012165,2]
[348964557,1736899848671,-150.0,0.00012168,2]
[348964558,1736899848680,-150.0,0.00012168,2]
[348964559,1736899848689,-150.0,0.00012169,2]
[348964560,1736899848698,-150.0,0.00012171,2]
[348964561,1736899848707,-150.0,0.00012174,2]
[348964562,1736899848716,-150.0,0.00012174,2]
[348964563,1736899848725,-150.0,0.00012182,2]
[348964564,1736899848734,-150.0,0.00012185,2]
[348964565,1736899848744,-1500.0,0.00012189,2]
[348964566,1736899848758,-150.0,0.0001219,2]
[348964567,1736899848768,-150.0,0.00012192,2]
[348964568,1736899848778,-150.0,0.00012194,2]
[348964569,1736899848787,-194.77015345,0.000122,2]
[348964570,1736899848797,-152.6184811,0.000122,2]